{"text_format":"3","workbook":"xlsx","n_sheets":6,"sheets":["Табло","Продажби","Доход","Разходи","Данъци","Категории"],"not_rendered":{"images":1,"defined_names":34},"read":"whole","date_system":"1900"}

{"sheet":"Табло","index":0,"n_rows":20,"n_cols":8,"rows_kept":20,"merged":[[0,2,0,4],[0,6,3,7],[5,1,5,7]]}
[null,"Отчет за Печалбите и Загубите","За [месец или година] завършващ [месец-ден-година]"]
[null,"Име на фирмата","Изразено в хиляди"]
[null,"Текуща брутна печалба  [L/J]",{"$f":"IFERROR(IF(Общо_брутна_печалба=0,\"-\",Общо_брутна_печалба/Общо_приход_от_продажби),\"-\")","v":"-"}]
[null,"Текущата рентабилност на продажбите [T/J]",{"$f":"IFERROR(IF(Нетна_печалба=0,\"-\",Нетна_печалба/Общо_приход_от_продажби),\"-\")","v":"-"}]
[]
[null,"Не променяйте категориите в този работен лист, защото работата на формулите може да бъде нарушена. Използвайте работния лист \"Категория\", за да добавите категории и да актуализирате съответните работни листове със записи. Този работен лист ще се актуализира автоматично."]
[null,"Резюме","Общо за предишния период","Общо за бюджета","Общо за текущи\nПериод","Общо за текущия период като % от продажбите","Общо % промяна спрямо предишния период","Общо % промяна спрямо бюджета"]
[null,"Общо приходи от продажби  [J]",{"$f":"SUMIFS(ПриходОтПродажби[Предишен период],ПриходОтПродажби[Тип приходи],\"Приходи от продажби\")","v":0},{"$f":"SUMIFS(ПриходОтПродажби[Бюджет],ПриходОтПродажби[Тип приходи],\"Приходи от продажби\")","v":0},{"$f":"SUMIFS(ПриходОтПродажби[Текущ период],ПриходОтПродажби[Тип приходи],\"Приходи от продажби\")","v":0},{"$f":"SUMIFS(ПриходОтПродажби[Текущия период като % от продажбите],ПриходОтПродажби[Тип приходи],\"Приходи от продажби\")","v":{"v":0,"d":"0.00%"}},{"$f":"SUMIFS(ПриходОтПродажби[% промяна спрямо предишния период],ПриходОтПродажби[Тип приходи],\"Приходи от продажби\")","v":{"v":0,"d":"0.00%"}},{"$f":"SUMIFS(ПриходОтПродажби[% промяна спрямо бюджета],ПриходОтПродажби[Тип приходи],\"Приходи от продажби\")","v":{"v":0,"d":"0.00%"}}]
[null,"Общо себестойност на продажбите  [K]",{"$f":"SUMIFS(ПриходОтПродажби[Предишен период],ПриходОтПродажби[Тип приходи],\"Себестойност на продажбите\")","v":0},{"$f":"SUMIFS(ПриходОтПродажби[Бюджет],ПриходОтПродажби[Тип приходи],\"Себестойност на продажбите\")","v":0},{"$f":"SUMIFS(ПриходОтПродажби[Текущ период],ПриходОтПродажби[Тип приходи],\"Себестойност на продажбите\")","v":0},{"$f":"SUMIFS(ПриходОтПродажби[Текущия период като % от продажбите],ПриходОтПродажби[Тип приходи],\"Себестойност на продажбите\")","v":{"v":0,"d":"0.00%"}},{"$f":"SUMIFS(ПриходОтПродажби[% промяна спрямо предишния период],ПриходОтПродажби[Тип приходи],\"Себестойност на продажбите\")","v":{"v":0,"d":"0.00%"}},{"$f":"SUMIFS(ПриходОтПродажби[% промяна спрямо бюджета],ПриходОтПродажби[Тип приходи],\"Себестойност на продажбите\")","v":{"v":0,"d":"0.00%"}}]
[null,"Общо разходи за продажби и маркетинг  [M]",{"$f":"SUMIFS(ОперативниРазходи[Предишен период],ОперативниРазходи[Тип на разхода],\"Продажби и маркетинг\")","v":0},{"$f":"SUMIFS(ОперативниРазходи[Бюджет],ОперативниРазходи[Тип на разхода],\"Продажби и маркетинг\")","v":0},{"$f":"SUMIFS(ОперативниРазходи[Текущ период],ОперативниРазходи[Тип на разхода],\"Продажби и маркетинг\")","v":0},{"$f":"SUMIFS(ОперативниРазходи[Текущия период като % от продажбите],ОперативниРазходи[Тип на разхода],\"Продажби и маркетинг\")","v":{"v":0,"d":"0.00%"}},{"$f":"SUMIFS(ОперативниРазходи[% промяна спрямо предишния период],ОперативниРазходи[Тип на разхода],\"Продажби и маркетинг\")","v":{"v":0,"d":"0.00%"}},{"$f":"SUMIFS(ОперативниРазходи[% промяна спрямо бюджета],ОперативниРазходи[Тип на разхода],\"Продажби и маркетинг\")","v":{"v":0,"d":"0.00%"}}]
[null,"Общо разходи за изследвания и разработки  [N]",{"$f":"SUMIFS(ОперативниРазходи[Предишен период],ОперативниРазходи[Тип на разхода],\"Изследвания и разработки\")","v":0},{"$f":"SUMIFS(ОперативниРазходи[Бюджет],ОперативниРазходи[Тип на разхода],\"Изследвания и разработки\")","v":0},{"$f":"SUMIFS(ОперативниРазходи[Текущ период],ОперативниРазходи[Тип на разхода],\"Изследвания и разработки\")","v":0},{"$f":"SUMIFS(ОперативниРазходи[Текущия период като % от продажбите],ОперативниРазходи[Тип на разхода],\"Изследвания и разработки\")","v":{"v":0,"d":"0.00%"}},{"$f":"SUMIFS(ОперативниРазходи[% промяна спрямо предишния период],ОперативниРазходи[Тип на разхода],\"Изследвания и разработки\")","v":{"v":0,"d":"0.00%"}},{"$f":"SUMIFS(ОперативниРазходи[% промяна спрямо бюджета],ОперативниРазходи[Тип на разхода],\"Изследвания и разработки\")","v":{"v":0,"d":"0.00%"}}]
[null,"Общо общи и административни разходи  [O]",{"$f":"SUMIFS(ОперативниРазходи[Предишен период],ОперативниРазходи[Тип на разхода],\"Общи и административни\")","v":0},{"$f":"SUMIFS(ОперативниРазходи[Бюджет],ОперативниРазходи[Тип на разхода],\"Общи и административни\")","v":0},{"$f":"SUMIFS(ОперативниРазходи[Текущ период],ОперативниРазходи[Тип на разхода],\"Общи и административни\")","v":0},{"$f":"SUMIFS(ОперативниРазходи[Текущия период като % от продажбите],ОперативниРазходи[Тип на разхода],\"Общи и административни\")","v":{"v":0,"d":"0.00%"}},{"$f":"SUMIFS(ОперативниРазходи[% промяна спрямо предишния период],ОперативниРазходи[Тип на разхода],\"Общи и административни\")","v":{"v":0,"d":"0.00%"}},{"$f":"SUMIFS(ОперативниРазходи[% промяна спрямо бюджета],ОперативниРазходи[Тип на разхода],\"Общи и административни\")","v":{"v":0,"d":"0.00%"}}]
[null,"Общо други оперативни разходи [P]",{"$f":"ОперативниРазходи[[#Totals],[Предишен период]]-SUM(C10:C12)","v":0},{"$f":"ОперативниРазходи[[#Totals],[Бюджет]]-SUM(D10:D12)","v":0},{"$f":"ОперативниРазходи[[#Totals],[Текущ период]]-SUM(E10:E12)","v":0},{"$f":"ОперативниРазходи[[#Totals],[Текущия период като % от продажбите]]-SUM(F10:F12)","v":{"v":0,"d":"0.00%"}},{"$f":"ОперативниРазходи[[#Totals],[% промяна спрямо предишния период]]-SUM(G10:G12)","v":{"v":0,"d":"0.00%"}},{"$f":"ОперативниРазходи[[#Totals],[% промяна спрямо бюджета]]-SUM(H10:H12)","v":{"v":0,"d":"0.00%"}}]
[null,"Други доходи  [S]",{"$f":"Доходи[[#Totals],[Предишен период]]","v":0},{"$f":"Доходи[[#Totals],[Бюджет]]","v":0},{"$f":"Доходи[[#Totals],[Текущ период]]","v":0},{"$f":"Доходи[[#Totals],[Текущия период като % от продажбите]]","v":{"v":0,"d":"0.00%"}},{"$f":"Доходи[[#Totals],[% промяна спрямо предишния период]]","v":{"v":0,"d":"0.00%"}},{"$f":"Доходи[[#Totals],[% промяна спрямо бюджета]]","v":{"v":0,"d":"0.00%"}}]
[null,"Общо данъци  [T]",{"$f":"Данъци[[#Totals],[Предишен период]]","v":0},{"$f":"Данъци[[#Totals],[Бюджет]]","v":0},{"$f":"Данъци[[#Totals],[Текущ период]]","v":0},{"$f":"Данъци[[#Totals],[Текущия период като % от продажбите]]","v":{"v":0,"d":"0.00%"}},{"$f":"Данъци[[#Totals],[% промяна спрямо предишния период]]","v":{"v":0,"d":"0.00%"}},{"$f":"Данъци[[#Totals],[% промяна спрямо бюджета]]","v":{"v":0,"d":"0.00%"}}]
[]
[null,"Брутна печалба  [L=J-K]",{"$f":"IFERROR(C8-C9,\"-\")","v":0},{"$f":"IFERROR(D8-D9,\"-\")","v":0},{"$f":"IFERROR(Общо_приход_от_продажби-Общо_себестойност_на_продажбите,\"-\")","v":0},{"$f":"IFERROR(IF(Общо_приход_от_продажби=0,\"0.00%\",Общо_брутна_печалба/Общо_приход_от_продажби),\"-\")","v":"0.00%"},{"$f":"IFERROR(IF(C17=Общо_брутна_печалба,0,IF(Общо_брутна_печалба>C17,ABS((Общо_брутна_печалба/C17)-1),IF(AND(Общо_брутна_печалба<C17,C17<0),-((Общо_брутна_печалба/C17)-1),(Общо_брутна_печалба/C17)-1))),\"-\")","v":{"v":0,"d":"0.00%"}},{"$f":"IFERROR(IF(D17=Общо_брутна_печалба,0,IF(Общо_брутна_печалба>D17,ABS((Общо_брутна_печалба/D17)-1),IF(AND(Общо_брутна_печалба<D17,D17<0),-((Общо_брутна_печалба/D17)-1),(Общо_брутна_печалба/D17)-1))),\"-\")","v":{"v":0,"d":"0.00%"}}]
[null,"Общо оперативни разходи  [Q=M+N+O+P]",{"$f":"IFERROR(C10+C11+C12+C13,\"-\")","v":0},{"$f":"IFERROR(D10+D11+D12+D13,\"-\")","v":0},{"$f":"IFERROR(Общо_продажби_и_маркетинг+Общо_изследвания_и_разработки+Общо_общи_и_административни+Общо_други_разходи,\"-\")","v":0},{"$f":"IFERROR(IF(Общо_приход_от_продажби=0,\"0.00%\",Общо_оперативни_разходи/Общо_приход_от_продажби),\"-\")","v":"0.00%"},{"$f":"IFERROR(IF(C18=Общо_оперативни_разходи,0,IF(Общо_оперативни_разходи>C18,ABS((Общо_оперативни_разходи/C18)-1),IF(AND(Общо_оперативни_разходи<C18,C18<0),-((Общо_оперативни_разходи/C18)-1),(Общо_оперативни_разходи/C18)-1))),\"-\")","v":{"v":0,"d":"0.00%"}},{"$f":"IFERROR(IF(D18=Общо_оперативни_разходи,0,IF(Общо_оперативни_разходи>D18,ABS((Общо_оперативни_разходи/D18)-1),IF(AND(Общо_оперативни_разходи<D18,D18<0),-((Общо_оперативни_разходи/D18)-1),(Общо_оперативни_разходи/D18)-1))),\"-\")","v":{"v":0,"d":"0.00%"}}]
[null,"Доход от операции  [R=L-Q]",{"$f":"IFERROR(C17-C18,\"-\")","v":0},{"$f":"IFERROR(D17-D18,\"-\")","v":0},{"$f":"IFERROR(Общо_брутна_печалба-Общо_оперативни_разходи,\"-\")","v":0},{"$f":"IFERROR(IF(Общо_приход_от_продажби=0,\"0.00%\",Общо_операции_по_дохода/Общо_приход_от_продажби),\"-\")","v":"0.00%"},{"$f":"IFERROR(IF(C19=Общо_операции_по_дохода,0,IF(Общо_операции_по_дохода>C19,ABS((Общо_операции_по_дохода/C19)-1),IF(AND(Общо_операции_по_дохода<C19,C19<0),-((Общо_операции_по_дохода/C19)-1),(Общо_операции_по_дохода/C19)-1))),\"-\")","v":{"v":0,"d":"0.00%"}},{"$f":"IFERROR(IF(D19=Общо_операции_по_дохода,0,IF(Общо_операции_по_дохода>D19,ABS((Общо_операции_по_дохода/D19)-1),IF(AND(Общо_операции_по_дохода<D19,D19<0),-((Общо_операции_по_дохода/D19)-1),(Общо_операции_по_дохода/D19)-1))),\"-\")","v":{"v":0,"d":"0.00%"}}]
[null,"Нетна печалба  [U=R+S-T]",{"$f":"IFERROR(C19+C14-C15,\"-\")","v":0},{"$f":"IFERROR(D19+D14-D15,\"-\")","v":0},{"$f":"Общо_операции_по_дохода+Общо_друг_доход-Общо_данъци","v":0},{"$f":"IFERROR(IF(Общо_приход_от_продажби=0,\"0.00%\",Нетна_печалба/Общо_приход_от_продажби),\"-\")","v":"0.00%"},{"$f":"IFERROR(IF(C20=Нетна_печалба,0,IF(Нетна_печалба>C20,ABS((Нетна_печалба/C20)-1),IF(AND(Нетна_печалба<C20,C20<0),-((Нетна_печалба/C20)-1),(Нетна_печалба/C20)-1))),\"-\")","v":{"v":0,"d":"0.00%"}},{"$f":"IFERROR(IF(D20=Нетна_печалба,0,IF(Нетна_печалба>D20,ABS((Нетна_печалба/D20)-1),IF(AND(Нетна_печалба<D20,D20<0),-((Нетна_печалба/D20)-1),(Нетна_печалба/D20)-1))),\"-\")","v":{"v":0,"d":"0.00%"}}]

{"sheet":"Продажби","index":1,"n_rows":13,"n_cols":9,"rows_kept":13,"merged":[[0,7,2,8]]}
[null,{"$f":"Заглавие_На_Работна_Книга","v":"Отчет за Печалбите и Загубите"}]
[null,{"$f":"Име_на_фирма","v":"Име на фирмата"},"Изразено в хиляди"]
[null,"Приходи от продажби",{"$f":"IFERROR(Приход_от_продажби,\"-\")","v":0}]
[null,"Тип приходи","Описание","Предишен период","Бюджет","Текущ период","Текущия период като % от продажбите","% промяна спрямо предишния период","% промяна спрямо бюджета"]
[null,"Приходи от продажби","Продукт/услуга 1",{"$nulls":3},{"$f":"IFERROR(IF(ПриходОтПродажби[[#Totals],[Текущ период]]=0,\"-\",ПриходОтПродажби[[#This Row],[Текущ период]]/Приход_от_продажби),\"-\")","v":"-"},{"$f":"IFERROR(IF(ПриходОтПродажби[[#This Row],[Предишен период]]=ПриходОтПродажби[[#This Row],[Текущ период]],0,IF(ПриходОтПродажби[[#This Row],[Текущ период]]>ПриходОтПродажби[[#This Row],[Предишен период]],ABS((ПриходОтПродажби[[#This Row],[Текущ период]]/ПриходОтПродажби[[#This Row],[Предишен период]])-1),IF(AND(ПриходОтПродажби[[#This Row],[Текущ период]]<ПриходОтПродажби[[#This Row],[Предишен период]],ПриходОтПродажби[[#This Row],[Предишен период]]<0),-((ПриходОтПродажби[[#This Row],[Текущ период]]/ПриходОтПродажби[[#This Row],[Предишен период]])-1),(ПриходОтПродажби[[#This Row],[Текущ период]]/ПриходОтПродажби[[#This Row],[Предишен период]])-1))),\"-\")","v":{"v":0,"d":"0.00%"}},{"$f":"IFERROR(IF(ПриходОтПродажби[[#This Row],[Бюджет]]=ПриходОтПродажби[[#This Row],[Текущ период]],0,IF(ПриходОтПродажби[[#This Row],[Текущ период]]>ПриходОтПродажби[[#This Row],[Бюджет]],ABS((ПриходОтПродажби[[#This Row],[Текущ период]]/ПриходОтПродажби[[#This Row],[Бюджет]])-1),IF(AND(ПриходОтПродажби[[#This Row],[Текущ период]]<ПриходОтПродажби[[#This Row],[Бюджет]],ПриходОтПродажби[[#This Row],[Бюджет]]<0),-((ПриходОтПродажби[[#This Row],[Текущ период]]/ПриходОтПродажби[[#This Row],[Бюджет]])-1),(ПриходОтПродажби[[#This Row],[Текущ период]]/ПриходОтПродажби[[#This Row],[Бюджет]])-1))),\"-\")","v":{"v":0,"d":"0.00%"}}]
[null,"Приходи от продажби","Продукт/услуга 2",{"$nulls":3},{"$f":"IFERROR(IF(ПриходОтПродажби[[#Totals],[Текущ период]]=0,\"-\",ПриходОтПродажби[[#This Row],[Текущ период]]/Приход_от_продажби),\"-\")","v":"-"},{"$f":"IFERROR(IF(ПриходОтПродажби[[#This Row],[Предишен период]]=ПриходОтПродажби[[#This Row],[Текущ период]],0,IF(ПриходОтПродажби[[#This Row],[Текущ период]]>ПриходОтПродажби[[#This Row],[Предишен период]],ABS((ПриходОтПродажби[[#This Row],[Текущ период]]/ПриходОтПродажби[[#This Row],[Предишен период]])-1),IF(AND(ПриходОтПродажби[[#This Row],[Текущ период]]<ПриходОтПродажби[[#This Row],[Предишен период]],ПриходОтПродажби[[#This Row],[Предишен период]]<0),-((ПриходОтПродажби[[#This Row],[Текущ период]]/ПриходОтПродажби[[#This Row],[Предишен период]])-1),(ПриходОтПродажби[[#This Row],[Текущ период]]/ПриходОтПродажби[[#This Row],[Предишен период]])-1))),\"-\")","v":{"v":0,"d":"0.00%"}},{"$f":"IFERROR(IF(ПриходОтПродажби[[#This Row],[Бюджет]]=ПриходОтПродажби[[#This Row],[Текущ период]],0,IF(ПриходОтПродажби[[#This Row],[Текущ период]]>ПриходОтПродажби[[#This Row],[Бюджет]],ABS((ПриходОтПродажби[[#This Row],[Текущ период]]/ПриходОтПродажби[[#This Row],[Бюджет]])-1),IF(AND(ПриходОтПродажби[[#This Row],[Текущ период]]<ПриходОтПродажби[[#This Row],[Бюджет]],ПриходОтПродажби[[#This Row],[Бюджет]]<0),-((ПриходОтПродажби[[#This Row],[Текущ период]]/ПриходОтПродажби[[#This Row],[Бюджет]])-1),(ПриходОтПродажби[[#This Row],[Текущ период]]/ПриходОтПродажби[[#This Row],[Бюджет]])-1))),\"-\")","v":{"v":0,"d":"0.00%"}}]
[null,"Приходи от продажби","Продукт/услуга 3",{"$nulls":3},{"$f":"IFERROR(IF(ПриходОтПродажби[[#Totals],[Текущ период]]=0,\"-\",ПриходОтПродажби[[#This Row],[Текущ период]]/Приход_от_продажби),\"-\")","v":"-"},{"$f":"IFERROR(IF(ПриходОтПродажби[[#This Row],[Предишен период]]=ПриходОтПродажби[[#This Row],[Текущ период]],0,IF(ПриходОтПродажби[[#This Row],[Текущ период]]>ПриходОтПродажби[[#This Row],[Предишен период]],ABS((ПриходОтПродажби[[#This Row],[Текущ период]]/ПриходОтПродажби[[#This Row],[Предишен период]])-1),IF(AND(ПриходОтПродажби[[#This Row],[Текущ период]]<ПриходОтПродажби[[#This Row],[Предишен период]],ПриходОтПродажби[[#This Row],[Предишен период]]<0),-((ПриходОтПродажби[[#This Row],[Текущ период]]/ПриходОтПродажби[[#This Row],[Предишен период]])-1),(ПриходОтПродажби[[#This Row],[Текущ период]]/ПриходОтПродажби[[#This Row],[Предишен период]])-1))),\"-\")","v":{"v":0,"d":"0.00%"}},{"$f":"IFERROR(IF(ПриходОтПродажби[[#This Row],[Бюджет]]=ПриходОтПродажби[[#This Row],[Текущ период]],0,IF(ПриходОтПродажби[[#This Row],[Текущ период]]>ПриходОтПродажби[[#This Row],[Бюджет]],ABS((ПриходОтПродажби[[#This Row],[Текущ период]]/ПриходОтПродажби[[#This Row],[Бюджет]])-1),IF(AND(ПриходОтПродажби[[#This Row],[Текущ период]]<ПриходОтПродажби[[#This Row],[Бюджет]],ПриходОтПродажби[[#This Row],[Бюджет]]<0),-((ПриходОтПродажби[[#This Row],[Текущ период]]/ПриходОтПродажби[[#This Row],[Бюджет]])-1),(ПриходОтПродажби[[#This Row],[Текущ период]]/ПриходОтПродажби[[#This Row],[Бюджет]])-1))),\"-\")","v":{"v":0,"d":"0.00%"}}]
[null,"Приходи от продажби","Продукт/услуга 4",{"$nulls":3},{"$f":"IFERROR(IF(ПриходОтПродажби[[#Totals],[Текущ период]]=0,\"-\",ПриходОтПродажби[[#This Row],[Текущ период]]/Приход_от_продажби),\"-\")","v":"-"},{"$f":"IFERROR(IF(ПриходОтПродажби[[#This Row],[Предишен период]]=ПриходОтПродажби[[#This Row],[Текущ период]],0,IF(ПриходОтПродажби[[#This Row],[Текущ период]]>ПриходОтПродажби[[#This Row],[Предишен период]],ABS((ПриходОтПродажби[[#This Row],[Текущ период]]/ПриходОтПродажби[[#This Row],[Предишен период]])-1),IF(AND(ПриходОтПродажби[[#This Row],[Текущ период]]<ПриходОтПродажби[[#This Row],[Предишен период]],ПриходОтПродажби[[#This Row],[Предишен период]]<0),-((ПриходОтПродажби[[#This Row],[Текущ период]]/ПриходОтПродажби[[#This Row],[Предишен период]])-1),(ПриходОтПродажби[[#This Row],[Текущ период]]/ПриходОтПродажби[[#This Row],[Предишен период]])-1))),\"-\")","v":{"v":0,"d":"0.00%"}},{"$f":"IFERROR(IF(ПриходОтПродажби[[#This Row],[Бюджет]]=ПриходОтПродажби[[#This Row],[Текущ период]],0,IF(ПриходОтПродажби[[#This Row],[Текущ период]]>ПриходОтПродажби[[#This Row],[Бюджет]],ABS((ПриходОтПродажби[[#This Row],[Текущ период]]/ПриходОтПродажби[[#This Row],[Бюджет]])-1),IF(AND(ПриходОтПродажби[[#This Row],[Текущ период]]<ПриходОтПродажби[[#This Row],[Бюджет]],ПриходОтПродажби[[#This Row],[Бюджет]]<0),-((ПриходОтПродажби[[#This Row],[Текущ период]]/ПриходОтПродажби[[#This Row],[Бюджет]])-1),(ПриходОтПродажби[[#This Row],[Текущ период]]/ПриходОтПродажби[[#This Row],[Бюджет]])-1))),\"-\")","v":{"v":0,"d":"0.00%"}}]
[null,"Себестойност на продажбите","Продукт/услуга 1",{"$nulls":3},{"$f":"IFERROR(IF(ПриходОтПродажби[[#Totals],[Текущ период]]=0,\"-\",ПриходОтПродажби[[#This Row],[Текущ период]]/Приход_от_продажби),\"-\")","v":"-"},{"$f":"IFERROR(IF(ПриходОтПродажби[[#This Row],[Предишен период]]=ПриходОтПродажби[[#This Row],[Текущ период]],0,IF(ПриходОтПродажби[[#This Row],[Текущ период]]>ПриходОтПродажби[[#This Row],[Предишен период]],ABS((ПриходОтПродажби[[#This Row],[Текущ период]]/ПриходОтПродажби[[#This Row],[Предишен период]])-1),IF(AND(ПриходОтПродажби[[#This Row],[Текущ период]]<ПриходОтПродажби[[#This Row],[Предишен период]],ПриходОтПродажби[[#This Row],[Предишен период]]<0),-((ПриходОтПродажби[[#This Row],[Текущ период]]/ПриходОтПродажби[[#This Row],[Предишен период]])-1),(ПриходОтПродажби[[#This Row],[Текущ период]]/ПриходОтПродажби[[#This Row],[Предишен период]])-1))),\"-\")","v":{"v":0,"d":"0.00%"}},{"$f":"IFERROR(IF(ПриходОтПродажби[[#This Row],[Бюджет]]=ПриходОтПродажби[[#This Row],[Текущ период]],0,IF(ПриходОтПродажби[[#This Row],[Текущ период]]>ПриходОтПродажби[[#This Row],[Бюджет]],ABS((ПриходОтПродажби[[#This Row],[Текущ период]]/ПриходОтПродажби[[#This Row],[Бюджет]])-1),IF(AND(ПриходОтПродажби[[#This Row],[Текущ период]]<ПриходОтПродажби[[#This Row],[Бюджет]],ПриходОтПродажби[[#This Row],[Бюджет]]<0),-((ПриходОтПродажби[[#This Row],[Текущ период]]/ПриходОтПродажби[[#This Row],[Бюджет]])-1),(ПриходОтПродажби[[#This Row],[Текущ период]]/ПриходОтПродажби[[#This Row],[Бюджет]])-1))),\"-\")","v":{"v":0,"d":"0.00%"}}]
[null,"Себестойност на продажбите","Продукт/услуга 2",{"$nulls":3},{"$f":"IFERROR(IF(ПриходОтПродажби[[#Totals],[Текущ период]]=0,\"-\",ПриходОтПродажби[[#This Row],[Текущ период]]/Приход_от_продажби),\"-\")","v":"-"},{"$f":"IFERROR(IF(ПриходОтПродажби[[#This Row],[Предишен период]]=ПриходОтПродажби[[#This Row],[Текущ период]],0,IF(ПриходОтПродажби[[#This Row],[Текущ период]]>ПриходОтПродажби[[#This Row],[Предишен период]],ABS((ПриходОтПродажби[[#This Row],[Текущ период]]/ПриходОтПродажби[[#This Row],[Предишен период]])-1),IF(AND(ПриходОтПродажби[[#This Row],[Текущ период]]<ПриходОтПродажби[[#This Row],[Предишен период]],ПриходОтПродажби[[#This Row],[Предишен период]]<0),-((ПриходОтПродажби[[#This Row],[Текущ период]]/ПриходОтПродажби[[#This Row],[Предишен период]])-1),(ПриходОтПродажби[[#This Row],[Текущ период]]/ПриходОтПродажби[[#This Row],[Предишен период]])-1))),\"-\")","v":{"v":0,"d":"0.00%"}},{"$f":"IFERROR(IF(ПриходОтПродажби[[#This Row],[Бюджет]]=ПриходОтПродажби[[#This Row],[Текущ период]],0,IF(ПриходОтПродажби[[#This Row],[Текущ период]]>ПриходОтПродажби[[#This Row],[Бюджет]],ABS((ПриходОтПродажби[[#This Row],[Текущ период]]/ПриходОтПродажби[[#This Row],[Бюджет]])-1),IF(AND(ПриходОтПродажби[[#This Row],[Текущ период]]<ПриходОтПродажби[[#This Row],[Бюджет]],ПриходОтПродажби[[#This Row],[Бюджет]]<0),-((ПриходОтПродажби[[#This Row],[Текущ период]]/ПриходОтПродажби[[#This Row],[Бюджет]])-1),(ПриходОтПродажби[[#This Row],[Текущ период]]/ПриходОтПродажби[[#This Row],[Бюджет]])-1))),\"-\")","v":{"v":0,"d":"0.00%"}}]
[null,"Себестойност на продажбите","Продукт/услуга 3",{"$nulls":3},{"$f":"IFERROR(IF(ПриходОтПродажби[[#Totals],[Текущ период]]=0,\"-\",ПриходОтПродажби[[#This Row],[Текущ период]]/Приход_от_продажби),\"-\")","v":"-"},{"$f":"IFERROR(IF(ПриходОтПродажби[[#This Row],[Предишен период]]=ПриходОтПродажби[[#This Row],[Текущ период]],0,IF(ПриходОтПродажби[[#This Row],[Текущ период]]>ПриходОтПродажби[[#This Row],[Предишен период]],ABS((ПриходОтПродажби[[#This Row],[Текущ период]]/ПриходОтПродажби[[#This Row],[Предишен период]])-1),IF(AND(ПриходОтПродажби[[#This Row],[Текущ период]]<ПриходОтПродажби[[#This Row],[Предишен период]],ПриходОтПродажби[[#This Row],[Предишен период]]<0),-((ПриходОтПродажби[[#This Row],[Текущ период]]/ПриходОтПродажби[[#This Row],[Предишен период]])-1),(ПриходОтПродажби[[#This Row],[Текущ период]]/ПриходОтПродажби[[#This Row],[Предишен период]])-1))),\"-\")","v":{"v":0,"d":"0.00%"}},{"$f":"IFERROR(IF(ПриходОтПродажби[[#This Row],[Бюджет]]=ПриходОтПродажби[[#This Row],[Текущ период]],0,IF(ПриходОтПродажби[[#This Row],[Текущ период]]>ПриходОтПродажби[[#This Row],[Бюджет]],ABS((ПриходОтПродажби[[#This Row],[Текущ период]]/ПриходОтПродажби[[#This Row],[Бюджет]])-1),IF(AND(ПриходОтПродажби[[#This Row],[Текущ период]]<ПриходОтПродажби[[#This Row],[Бюджет]],ПриходОтПродажби[[#This Row],[Бюджет]]<0),-((ПриходОтПродажби[[#This Row],[Текущ период]]/ПриходОтПродажби[[#This Row],[Бюджет]])-1),(ПриходОтПродажби[[#This Row],[Текущ период]]/ПриходОтПродажби[[#This Row],[Бюджет]])-1))),\"-\")","v":{"v":0,"d":"0.00%"}}]
[null,"Себестойност на продажбите","Продукт/услуга 4",{"$nulls":3},{"$f":"IFERROR(IF(ПриходОтПродажби[[#Totals],[Текущ период]]=0,\"-\",ПриходОтПродажби[[#This Row],[Текущ период]]/Приход_от_продажби),\"-\")","v":"-"},{"$f":"IFERROR(IF(ПриходОтПродажби[[#This Row],[Предишен период]]=ПриходОтПродажби[[#This Row],[Текущ период]],0,IF(ПриходОтПродажби[[#This Row],[Текущ период]]>ПриходОтПродажби[[#This Row],[Предишен период]],ABS((ПриходОтПродажби[[#This Row],[Текущ период]]/ПриходОтПродажби[[#This Row],[Предишен период]])-1),IF(AND(ПриходОтПродажби[[#This Row],[Текущ период]]<ПриходОтПродажби[[#This Row],[Предишен период]],ПриходОтПродажби[[#This Row],[Предишен период]]<0),-((ПриходОтПродажби[[#This Row],[Текущ период]]/ПриходОтПродажби[[#This Row],[Предишен период]])-1),(ПриходОтПродажби[[#This Row],[Текущ период]]/ПриходОтПродажби[[#This Row],[Предишен период]])-1))),\"-\")","v":{"v":0,"d":"0.00%"}},{"$f":"IFERROR(IF(ПриходОтПродажби[[#This Row],[Бюджет]]=ПриходОтПродажби[[#This Row],[Текущ период]],0,IF(ПриходОтПродажби[[#This Row],[Текущ период]]>ПриходОтПродажби[[#This Row],[Бюджет]],ABS((ПриходОтПродажби[[#This Row],[Текущ период]]/ПриходОтПродажби[[#This Row],[Бюджет]])-1),IF(AND(ПриходОтПродажби[[#This Row],[Текущ период]]<ПриходОтПродажби[[#This Row],[Бюджет]],ПриходОтПродажби[[#This Row],[Бюджет]]<0),-((ПриходОтПродажби[[#This Row],[Текущ период]]/ПриходОтПродажби[[#This Row],[Бюджет]])-1),(ПриходОтПродажби[[#This Row],[Текущ период]]/ПриходОтПродажби[[#This Row],[Бюджет]])-1))),\"-\")","v":{"v":0,"d":"0.00%"}}]
[null,"Общо приходи от продажби",null,{"$f":"SUBTOTAL(109,ПриходОтПродажби[Предишен период])","v":0},{"$f":"SUBTOTAL(109,ПриходОтПродажби[Бюджет])","v":0},{"$f":"SUBTOTAL(109,ПриходОтПродажби[Текущ период])","v":0},{"$f":"SUBTOTAL(109,ПриходОтПродажби[Текущия период като % от продажбите])","v":{"v":0,"d":"0.00%"}},{"$f":"SUBTOTAL(109,ПриходОтПродажби[% промяна спрямо предишния период])","v":{"v":0,"d":"0.00%"}},{"$f":"SUBTOTAL(109,ПриходОтПродажби[% промяна спрямо бюджета])","v":{"v":0,"d":"0.00%"}}]

{"sheet":"Доход","index":2,"n_rows":7,"n_cols":9,"rows_kept":7,"merged":[[0,7,2,8]]}
[null,{"$f":"Заглавие_На_Работна_Книга","v":"Отчет за Печалбите и Загубите"}]
[null,{"$f":"Име_на_фирма","v":"Име на фирмата"},"Изразено в хиляди"]
[null,"Доход",{"$f":"IFERROR(Доходи[[#Totals],[Текущ период]],\"-\")","v":0}]
[null,"Тип доход","Описание","Предишен период","Бюджет","Текущ период","Текущия период като % от продажбите","% промяна спрямо предишния период","% промяна спрямо бюджета"]
[null,"Доход","Други доходи",{"$nulls":3},{"$f":"IFERROR(IF(Приход_от_продажби=0,\"-\",Доходи[[#This Row],[Текущ период]]/Приход_от_продажби),\"-\")","v":"-"},{"$f":"IFERROR(IF(Доходи[[#This Row],[Предишен период]]=Доходи[[#This Row],[Текущ период]],0,IF(Доходи[[#This Row],[Текущ период]]>Доходи[[#This Row],[Предишен период]],ABS((Доходи[[#This Row],[Текущ период]]/Доходи[[#This Row],[Предишен период]])-1),IF(AND(Доходи[[#This Row],[Текущ период]]<Доходи[[#This Row],[Предишен период]],Доходи[[#This Row],[Предишен период]]<0),-((Доходи[[#This Row],[Текущ период]]/Доходи[[#This Row],[Предишен период]])-1),(Доходи[[#This Row],[Текущ период]]/Доходи[[#This Row],[Предишен период]])-1))),\"-\")","v":{"v":0,"d":"0.00%"}},{"$f":"IFERROR(IF(Доходи[[#This Row],[Бюджет]]=Доходи[[#This Row],[Текущ период]],0,IF(Доходи[[#This Row],[Текущ период]]>Доходи[[#This Row],[Бюджет]],ABS((Доходи[[#This Row],[Текущ период]]/Доходи[[#This Row],[Бюджет]])-1),IF(AND(Доходи[[#This Row],[Текущ период]]<Доходи[[#This Row],[Бюджет]],Доходи[[#This Row],[Бюджет]]<0),-((Доходи[[#This Row],[Текущ период]]/Доходи[[#This Row],[Бюджет]])-1),(Доходи[[#This Row],[Текущ период]]/Доходи[[#This Row],[Бюджет]])-1))),\"-\")","v":{"v":0,"d":"0.00%"}}]
[{"$nulls":6},{"$f":"IFERROR(IF(Приход_от_продажби=0,\"-\",Доходи[[#This Row],[Текущ период]]/Приход_от_продажби),\"-\")","v":"-"},{"$f":"IFERROR(IF(Доходи[[#This Row],[Предишен период]]=Доходи[[#This Row],[Текущ период]],0,IF(Доходи[[#This Row],[Текущ период]]>Доходи[[#This Row],[Предишен период]],ABS((Доходи[[#This Row],[Текущ период]]/Доходи[[#This Row],[Предишен период]])-1),IF(AND(Доходи[[#This Row],[Текущ период]]<Доходи[[#This Row],[Предишен период]],Доходи[[#This Row],[Предишен период]]<0),-((Доходи[[#This Row],[Текущ период]]/Доходи[[#This Row],[Предишен период]])-1),(Доходи[[#This Row],[Текущ период]]/Доходи[[#This Row],[Предишен период]])-1))),\"-\")","v":{"v":0,"d":"0.00%"}},{"$f":"IFERROR(IF(Доходи[[#This Row],[Бюджет]]=Доходи[[#This Row],[Текущ период]],0,IF(Доходи[[#This Row],[Текущ период]]>Доходи[[#This Row],[Бюджет]],ABS((Доходи[[#This Row],[Текущ период]]/Доходи[[#This Row],[Бюджет]])-1),IF(AND(Доходи[[#This Row],[Текущ период]]<Доходи[[#This Row],[Бюджет]],Доходи[[#This Row],[Бюджет]]<0),-((Доходи[[#This Row],[Текущ период]]/Доходи[[#This Row],[Бюджет]])-1),(Доходи[[#This Row],[Текущ период]]/Доходи[[#This Row],[Бюджет]])-1))),\"-\")","v":{"v":0,"d":"0.00%"}}]
[null,"Общо доход от продажби",null,{"$f":"SUBTOTAL(109,Доходи[Предишен период])","v":0},{"$f":"SUBTOTAL(109,Доходи[Бюджет])","v":0},{"$f":"SUBTOTAL(109,Доходи[Текущ период])","v":0},{"$f":"SUBTOTAL(109,Доходи[Текущия период като % от продажбите])","v":{"v":0,"d":"0.00%"}},{"$f":"SUBTOTAL(109,Доходи[% промяна спрямо предишния период])","v":{"v":0,"d":"0.00%"}},{"$f":"SUBTOTAL(109,Доходи[% промяна спрямо бюджета])","v":{"v":0,"d":"0.00%"}}]

{"sheet":"Разходи","index":3,"n_rows":25,"n_cols":9,"rows_kept":25,"merged":[[0,7,2,8]]}
[null,{"$f":"Заглавие_На_Работна_Книга","v":"Отчет за Печалбите и Загубите"}]
[null,{"$f":"Име_на_фирма","v":"Име на фирмата"},"Изразено в хиляди"]
[null,"Разходи за дейността",{"$f":"IFERROR(ОперативниРазходи[[#Totals],[Текущ период]],\"-\")","v":0}]
[null,"Тип на разхода","Описание","Предишен период","Бюджет","Текущ период","Текущия период като % от продажбите","% промяна спрямо предишния период","% промяна спрямо бюджета"]
[null,"Продажби и маркетинг","Реклама",{"$nulls":3},{"$f":"IFERROR(IF(Приход_от_продажби=0,\"-\",ОперативниРазходи[[#This Row],[Текущ период]]/Приход_от_продажби),\"-\")","v":"-"},{"$f":"IFERROR(IF(ОперативниРазходи[[#This Row],[Предишен период]]=ОперативниРазходи[[#This Row],[Текущ период]],0,IF(ОперативниРазходи[[#This Row],[Текущ период]]>ОперативниРазходи[[#This Row],[Предишен период]],ABS((ОперативниРазходи[[#This Row],[Текущ период]]/ОперативниРазходи[[#This Row],[Предишен период]])-1),IF(AND(ОперативниРазходи[[#This Row],[Текущ период]]<ОперативниРазходи[[#This Row],[Предишен период]],ОперативниРазходи[[#This Row],[Предишен период]]<0),-((ОперативниРазходи[[#This Row],[Текущ период]]/ОперативниРазходи[[#This Row],[Предишен период]])-1),(ОперативниРазходи[[#This Row],[Текущ период]]/ОперативниРазходи[[#This Row],[Предишен период]])-1))),\"-\")","v":{"v":0,"d":"0.00%"}},{"$f":"IFERROR(IF(ОперативниРазходи[[#This Row],[Бюджет]]=ОперативниРазходи[[#This Row],[Текущ период]],0,IF(ОперативниРазходи[[#This Row],[Текущ период]]>ОперативниРазходи[[#This Row],[Бюджет]],ABS((ОперативниРазходи[[#This Row],[Текущ период]]/ОперативниРазходи[[#This Row],[Бюджет]])-1),IF(AND(ОперативниРазходи[[#This Row],[Текущ период]]<ОперативниРазходи[[#This Row],[Бюджет]],ОперативниРазходи[[#This Row],[Бюджет]]<0),-((ОперативниРазходи[[#This Row],[Текущ период]]/ОперативниРазходи[[#This Row],[Бюджет]])-1),(ОперативниРазходи[[#This Row],[Текущ период]]/ОперативниРазходи[[#This Row],[Бюджет]])-1))),\"-\")","v":{"v":0,"d":"0.00%"}}]
[null,"Продажби и маркетинг","Директен маркетинг",{"$nulls":3},{"$f":"IFERROR(IF(Приход_от_продажби=0,\"-\",ОперативниРазходи[[#This Row],[Текущ период]]/Приход_от_продажби),\"-\")","v":"-"},{"$f":"IFERROR(IF(ОперативниРазходи[[#This Row],[Предишен период]]=ОперативниРазходи[[#This Row],[Текущ период]],0,IF(ОперативниРазходи[[#This Row],[Текущ период]]>ОперативниРазходи[[#This Row],[Предишен период]],ABS((ОперативниРазходи[[#This Row],[Текущ период]]/ОперативниРазходи[[#This Row],[Предишен период]])-1),IF(AND(ОперативниРазходи[[#This Row],[Текущ период]]<ОперативниРазходи[[#This Row],[Предишен период]],ОперативниРазходи[[#This Row],[Предишен период]]<0),-((ОперативниРазходи[[#This Row],[Текущ период]]/ОперативниРазходи[[#This Row],[Предишен период]])-1),(ОперативниРазходи[[#This Row],[Текущ период]]/ОперативниРазходи[[#This Row],[Предишен период]])-1))),\"-\")","v":{"v":0,"d":"0.00%"}},{"$f":"IFERROR(IF(ОперативниРазходи[[#This Row],[Бюджет]]=ОперативниРазходи[[#This Row],[Текущ период]],0,IF(ОперативниРазходи[[#This Row],[Текущ период]]>ОперативниРазходи[[#This Row],[Бюджет]],ABS((ОперативниРазходи[[#This Row],[Текущ период]]/ОперативниРазходи[[#This Row],[Бюджет]])-1),IF(AND(ОперативниРазходи[[#This Row],[Текущ период]]<ОперативниРазходи[[#This Row],[Бюджет]],ОперативниРазходи[[#This Row],[Бюджет]]<0),-((ОперативниРазходи[[#This Row],[Текущ период]]/ОперативниРазходи[[#This Row],[Бюджет]])-1),(ОперативниРазходи[[#This Row],[Текущ период]]/ОперативниРазходи[[#This Row],[Бюджет]])-1))),\"-\")","v":{"v":0,"d":"0.00%"}}]
[null,"Продажби и маркетинг","Други разходи (посочете)",{"$nulls":3},{"$f":"IFERROR(IF(Приход_от_продажби=0,\"-\",ОперативниРазходи[[#This Row],[Текущ период]]/Приход_от_продажби),\"-\")","v":"-"},{"$f":"IFERROR(IF(ОперативниРазходи[[#This Row],[Предишен период]]=ОперативниРазходи[[#This Row],[Текущ период]],0,IF(ОперативниРазходи[[#This Row],[Текущ период]]>ОперативниРазходи[[#This Row],[Предишен период]],ABS((ОперативниРазходи[[#This Row],[Текущ период]]/ОперативниРазходи[[#This Row],[Предишен период]])-1),IF(AND(ОперативниРазходи[[#This Row],[Текущ период]]<ОперативниРазходи[[#This Row],[Предишен период]],ОперативниРазходи[[#This Row],[Предишен период]]<0),-((ОперативниРазходи[[#This Row],[Текущ период]]/ОперативниРазходи[[#This Row],[Предишен период]])-1),(ОперативниРазходи[[#This Row],[Текущ период]]/ОперативниРазходи[[#This Row],[Предишен период]])-1))),\"-\")","v":{"v":0,"d":"0.00%"}},{"$f":"IFERROR(IF(ОперативниРазходи[[#This Row],[Бюджет]]=ОперативниРазходи[[#This Row],[Текущ период]],0,IF(ОперативниРазходи[[#This Row],[Текущ период]]>ОперативниРазходи[[#This Row],[Бюджет]],ABS((ОперативниРазходи[[#This Row],[Текущ период]]/ОперативниРазходи[[#This Row],[Бюджет]])-1),IF(AND(ОперативниРазходи[[#This Row],[Текущ период]]<ОперативниРазходи[[#This Row],[Бюджет]],ОперативниРазходи[[#This Row],[Бюджет]]<0),-((ОперативниРазходи[[#This Row],[Текущ период]]/ОперативниРазходи[[#This Row],[Бюджет]])-1),(ОперативниРазходи[[#This Row],[Текущ период]]/ОперативниРазходи[[#This Row],[Бюджет]])-1))),\"-\")","v":{"v":0,"d":"0.00%"}}]
[null,"Продажби и маркетинг","Други разходи (посочете)",{"$nulls":3},{"$f":"IFERROR(IF(Приход_от_продажби=0,\"-\",ОперативниРазходи[[#This Row],[Текущ период]]/Приход_от_продажби),\"-\")","v":"-"},{"$f":"IFERROR(IF(ОперативниРазходи[[#This Row],[Предишен период]]=ОперативниРазходи[[#This Row],[Текущ период]],0,IF(ОперативниРазходи[[#This Row],[Текущ период]]>ОперативниРазходи[[#This Row],[Предишен период]],ABS((ОперативниРазходи[[#This Row],[Текущ период]]/ОперативниРазходи[[#This Row],[Предишен период]])-1),IF(AND(ОперативниРазходи[[#This Row],[Текущ период]]<ОперативниРазходи[[#This Row],[Предишен период]],ОперативниРазходи[[#This Row],[Предишен период]]<0),-((ОперативниРазходи[[#This Row],[Текущ период]]/ОперативниРазходи[[#This Row],[Предишен период]])-1),(ОперативниРазходи[[#This Row],[Текущ период]]/ОперативниРазходи[[#This Row],[Предишен период]])-1))),\"-\")","v":{"v":0,"d":"0.00%"}},{"$f":"IFERROR(IF(ОперативниРазходи[[#This Row],[Бюджет]]=ОперативниРазходи[[#This Row],[Текущ период]],0,IF(ОперативниРазходи[[#This Row],[Текущ период]]>ОперативниРазходи[[#This Row],[Бюджет]],ABS((ОперативниРазходи[[#This Row],[Текущ период]]/ОперативниРазходи[[#This Row],[Бюджет]])-1),IF(AND(ОперативниРазходи[[#This Row],[Текущ период]]<ОперативниРазходи[[#This Row],[Бюджет]],ОперативниРазходи[[#This Row],[Бюджет]]<0),-((ОперативниРазходи[[#This Row],[Текущ период]]/ОперативниРазходи[[#This Row],[Бюджет]])-1),(ОперативниРазходи[[#This Row],[Текущ период]]/ОперативниРазходи[[#This Row],[Бюджет]])-1))),\"-\")","v":{"v":0,"d":"0.00%"}}]
[null,"Изследвания и разработки","Лицензи за технологии",{"$nulls":3},{"$f":"IFERROR(IF(Приход_от_продажби=0,\"-\",ОперативниРазходи[[#This Row],[Текущ период]]/Приход_от_продажби),\"-\")","v":"-"},{"$f":"IFERROR(IF(ОперативниРазходи[[#This Row],[Предишен период]]=ОперативниРазходи[[#This Row],[Текущ период]],0,IF(ОперативниРазходи[[#This Row],[Текущ период]]>ОперативниРазходи[[#This Row],[Предишен период]],ABS((ОперативниРазходи[[#This Row],[Текущ период]]/ОперативниРазходи[[#This Row],[Предишен период]])-1),IF(AND(ОперативниРазходи[[#This Row],[Текущ период]]<ОперативниРазходи[[#This Row],[Предишен период]],ОперативниРазходи[[#This Row],[Предишен период]]<0),-((ОперативниРазходи[[#This Row],[Текущ период]]/ОперативниРазходи[[#This Row],[Предишен период]])-1),(ОперативниРазходи[[#This Row],[Текущ период]]/ОперативниРазходи[[#This Row],[Предишен период]])-1))),\"-\")","v":{"v":0,"d":"0.00%"}},{"$f":"IFERROR(IF(ОперативниРазходи[[#This Row],[Бюджет]]=ОперативниРазходи[[#This Row],[Текущ период]],0,IF(ОперативниРазходи[[#This Row],[Текущ период]]>ОперативниРазходи[[#This Row],[Бюджет]],ABS((ОперативниРазходи[[#This Row],[Текущ период]]/ОперативниРазходи[[#This Row],[Бюджет]])-1),IF(AND(ОперативниРазходи[[#This Row],[Текущ период]]<ОперативниРазходи[[#This Row],[Бюджет]],ОперативниРазходи[[#This Row],[Бюджет]]<0),-((ОперативниРазходи[[#This Row],[Текущ период]]/ОперативниРазходи[[#This Row],[Бюджет]])-1),(ОперативниРазходи[[#This Row],[Текущ период]]/ОперативниРазходи[[#This Row],[Бюджет]])-1))),\"-\")","v":{"v":0,"d":"0.00%"}}]
[null,"Изследвания и разработки","Патенти ",{"$nulls":3},{"$f":"IFERROR(IF(Приход_от_продажби=0,\"-\",ОперативниРазходи[[#This Row],[Текущ период]]/Приход_от_продажби),\"-\")","v":"-"},{"$f":"IFERROR(IF(ОперативниРазходи[[#This Row],[Предишен период]]=ОперативниРазходи[[#This Row],[Текущ период]],0,IF(ОперативниРазходи[[#This Row],[Текущ период]]>ОперативниРазходи[[#This Row],[Предишен период]],ABS((ОперативниРазходи[[#This Row],[Текущ период]]/ОперативниРазходи[[#This Row],[Предишен период]])-1),IF(AND(ОперативниРазходи[[#This Row],[Текущ период]]<ОперативниРазходи[[#This Row],[Предишен период]],ОперативниРазходи[[#This Row],[Предишен период]]<0),-((ОперативниРазходи[[#This Row],[Текущ период]]/ОперативниРазходи[[#This Row],[Предишен период]])-1),(ОперативниРазходи[[#This Row],[Текущ период]]/ОперативниРазходи[[#This Row],[Предишен период]])-1))),\"-\")","v":{"v":0,"d":"0.00%"}},{"$f":"IFERROR(IF(ОперативниРазходи[[#This Row],[Бюджет]]=ОперативниРазходи[[#This Row],[Текущ период]],0,IF(ОперативниРазходи[[#This Row],[Текущ период]]>ОперативниРазходи[[#This Row],[Бюджет]],ABS((ОперативниРазходи[[#This Row],[Текущ период]]/ОперативниРазходи[[#This Row],[Бюджет]])-1),IF(AND(ОперативниРазходи[[#This Row],[Текущ период]]<ОперативниРазходи[[#This Row],[Бюджет]],ОперативниРазходи[[#This Row],[Бюджет]]<0),-((ОперативниРазходи[[#This Row],[Текущ период]]/ОперативниРазходи[[#This Row],[Бюджет]])-1),(ОперативниРазходи[[#This Row],[Текущ период]]/ОперативниРазходи[[#This Row],[Бюджет]])-1))),\"-\")","v":{"v":0,"d":"0.00%"}}]
[null,"Изследвания и разработки","Други разходи (посочете)",{"$nulls":3},{"$f":"IFERROR(IF(Приход_от_продажби=0,\"-\",ОперативниРазходи[[#This Row],[Текущ период]]/Приход_от_продажби),\"-\")","v":"-"},{"$f":"IFERROR(IF(ОперативниРазходи[[#This Row],[Предишен период]]=ОперативниРазходи[[#This Row],[Текущ период]],0,IF(ОперативниРазходи[[#This Row],[Текущ период]]>ОперативниРазходи[[#This Row],[Предишен период]],ABS((ОперативниРазходи[[#This Row],[Текущ период]]/ОперативниРазходи[[#This Row],[Предишен период]])-1),IF(AND(ОперативниРазходи[[#This Row],[Текущ период]]<ОперативниРазходи[[#This Row],[Предишен период]],ОперативниРазходи[[#This Row],[Предишен период]]<0),-((ОперативниРазходи[[#This Row],[Текущ период]]/ОперативниРазходи[[#This Row],[Предишен период]])-1),(ОперативниРазходи[[#This Row],[Текущ период]]/ОперативниРазходи[[#This Row],[Предишен период]])-1))),\"-\")","v":{"v":0,"d":"0.00%"}},{"$f":"IFERROR(IF(ОперативниРазходи[[#This Row],[Бюджет]]=ОперативниРазходи[[#This Row],[Текущ период]],0,IF(ОперативниРазходи[[#This Row],[Текущ период]]>ОперативниРазходи[[#This Row],[Бюджет]],ABS((ОперативниРазходи[[#This Row],[Текущ период]]/ОперативниРазходи[[#This Row],[Бюджет]])-1),IF(AND(ОперативниРазходи[[#This Row],[Текущ период]]<ОперативниРазходи[[#This Row],[Бюджет]],ОперативниРазходи[[#This Row],[Бюджет]]<0),-((ОперативниРазходи[[#This Row],[Текущ период]]/ОперативниРазходи[[#This Row],[Бюджет]])-1),(ОперативниРазходи[[#This Row],[Текущ период]]/ОперативниРазходи[[#This Row],[Бюджет]])-1))),\"-\")","v":{"v":0,"d":"0.00%"}}]
[null,"Изследвания и разработки","Други разходи (посочете)",{"$nulls":3},{"$f":"IFERROR(IF(Приход_от_продажби=0,\"-\",ОперативниРазходи[[#This Row],[Текущ период]]/Приход_от_продажби),\"-\")","v":"-"},{"$f":"IFERROR(IF(ОперативниРазходи[[#This Row],[Предишен период]]=ОперативниРазходи[[#This Row],[Текущ период]],0,IF(ОперативниРазходи[[#This Row],[Текущ период]]>ОперативниРазходи[[#This Row],[Предишен период]],ABS((ОперативниРазходи[[#This Row],[Текущ период]]/ОперативниРазходи[[#This Row],[Предишен период]])-1),IF(AND(ОперативниРазходи[[#This Row],[Текущ период]]<ОперативниРазходи[[#This Row],[Предишен период]],ОперативниРазходи[[#This Row],[Предишен период]]<0),-((ОперативниРазходи[[#This Row],[Текущ период]]/ОперативниРазходи[[#This Row],[Предишен период]])-1),(ОперативниРазходи[[#This Row],[Текущ период]]/ОперативниРазходи[[#This Row],[Предишен период]])-1))),\"-\")","v":{"v":0,"d":"0.00%"}},{"$f":"IFERROR(IF(ОперативниРазходи[[#This Row],[Бюджет]]=ОперативниРазходи[[#This Row],[Текущ период]],0,IF(ОперативниРазходи[[#This Row],[Текущ период]]>ОперативниРазходи[[#This Row],[Бюджет]],ABS((ОперативниРазходи[[#This Row],[Текущ период]]/ОперативниРазходи[[#This Row],[Бюджет]])-1),IF(AND(ОперативниРазходи[[#This Row],[Текущ период]]<ОперативниРазходи[[#This Row],[Бюджет]],ОперативниРазходи[[#This Row],[Бюджет]]<0),-((ОперативниРазходи[[#This Row],[Текущ период]]/ОперативниРазходи[[#This Row],[Бюджет]])-1),(ОперативниРазходи[[#This Row],[Текущ период]]/ОперативниРазходи[[#This Row],[Бюджет]])-1))),\"-\")","v":{"v":0,"d":"0.00%"}}]
[null,"Общи и административни","Ставки и заплати",{"$nulls":3},{"$f":"IFERROR(IF(Приход_от_продажби=0,\"-\",ОперативниРазходи[[#This Row],[Текущ период]]/Приход_от_продажби),\"-\")","v":"-"},{"$f":"IFERROR(IF(ОперативниРазходи[[#This Row],[Предишен период]]=ОперативниРазходи[[#This Row],[Текущ период]],0,IF(ОперативниРазходи[[#This Row],[Текущ период]]>ОперативниРазходи[[#This Row],[Предишен период]],ABS((ОперативниРазходи[[#This Row],[Текущ период]]/ОперативниРазходи[[#This Row],[Предишен период]])-1),IF(AND(ОперативниРазходи[[#This Row],[Текущ период]]<ОперативниРазходи[[#This Row],[Предишен период]],ОперативниРазходи[[#This Row],[Предишен период]]<0),-((ОперативниРазходи[[#This Row],[Текущ период]]/ОперативниРазходи[[#This Row],[Предишен период]])-1),(ОперативниРазходи[[#This Row],[Текущ период]]/ОперативниРазходи[[#This Row],[Предишен период]])-1))),\"-\")","v":{"v":0,"d":"0.00%"}},{"$f":"IFERROR(IF(ОперативниРазходи[[#This Row],[Бюджет]]=ОперативниРазходи[[#This Row],[Текущ период]],0,IF(ОперативниРазходи[[#This Row],[Текущ период]]>ОперативниРазходи[[#This Row],[Бюджет]],ABS((ОперативниРазходи[[#This Row],[Текущ период]]/ОперативниРазходи[[#This Row],[Бюджет]])-1),IF(AND(ОперативниРазходи[[#This Row],[Текущ период]]<ОперативниРазходи[[#This Row],[Бюджет]],ОперативниРазходи[[#This Row],[Бюджет]]<0),-((ОперативниРазходи[[#This Row],[Текущ период]]/ОперативниРазходи[[#This Row],[Бюджет]])-1),(ОперативниРазходи[[#This Row],[Текущ период]]/ОперативниРазходи[[#This Row],[Бюджет]])-1))),\"-\")","v":{"v":0,"d":"0.00%"}}]
[null,"Общи и административни","Външни услуги",{"$nulls":3},{"$f":"IFERROR(IF(Приход_от_продажби=0,\"-\",ОперативниРазходи[[#This Row],[Текущ период]]/Приход_от_продажби),\"-\")","v":"-"},{"$f":"IFERROR(IF(ОперативниРазходи[[#This Row],[Предишен период]]=ОперативниРазходи[[#This Row],[Текущ период]],0,IF(ОперативниРазходи[[#This Row],[Текущ период]]>ОперативниРазходи[[#This Row],[Предишен период]],ABS((ОперативниРазходи[[#This Row],[Текущ период]]/ОперативниРазходи[[#This Row],[Предишен период]])-1),IF(AND(ОперативниРазходи[[#This Row],[Текущ период]]<ОперативниРазходи[[#This Row],[Предишен период]],ОперативниРазходи[[#This Row],[Предишен период]]<0),-((ОперативниРазходи[[#This Row],[Текущ период]]/ОперативниРазходи[[#This Row],[Предишен период]])-1),(ОперативниРазходи[[#This Row],[Текущ период]]/ОперативниРазходи[[#This Row],[Предишен период]])-1))),\"-\")","v":{"v":0,"d":"0.00%"}},{"$f":"IFERROR(IF(ОперативниРазходи[[#This Row],[Бюджет]]=ОперативниРазходи[[#This Row],[Текущ период]],0,IF(ОперативниРазходи[[#This Row],[Текущ период]]>ОперативниРазходи[[#This Row],[Бюджет]],ABS((ОперативниРазходи[[#This Row],[Текущ период]]/ОперативниРазходи[[#This Row],[Бюджет]])-1),IF(AND(ОперативниРазходи[[#This Row],[Текущ период]]<ОперативниРазходи[[#This Row],[Бюджет]],ОперативниРазходи[[#This Row],[Бюджет]]<0),-((ОперативниРазходи[[#This Row],[Текущ период]]/ОперативниРазходи[[#This Row],[Бюджет]])-1),(ОперативниРазходи[[#This Row],[Текущ период]]/ОперативниРазходи[[#This Row],[Бюджет]])-1))),\"-\")","v":{"v":0,"d":"0.00%"}}]
[null,"Общи и административни","Консумативи",{"$nulls":3},{"$f":"IFERROR(IF(Приход_от_продажби=0,\"-\",ОперативниРазходи[[#This Row],[Текущ период]]/Приход_от_продажби),\"-\")","v":"-"},{"$f":"IFERROR(IF(ОперативниРазходи[[#This Row],[Предишен период]]=ОперативниРазходи[[#This Row],[Текущ период]],0,IF(ОперативниРазходи[[#This Row],[Текущ период]]>ОперативниРазходи[[#This Row],[Предишен период]],ABS((ОперативниРазходи[[#This Row],[Текущ период]]/ОперативниРазходи[[#This Row],[Предишен период]])-1),IF(AND(ОперативниРазходи[[#This Row],[Текущ период]]<ОперативниРазходи[[#This Row],[Предишен период]],ОперативниРазходи[[#This Row],[Предишен период]]<0),-((ОперативниРазходи[[#This Row],[Текущ период]]/ОперативниРазходи[[#This Row],[Предишен период]])-1),(ОперативниРазходи[[#This Row],[Текущ период]]/ОперативниРазходи[[#This Row],[Предишен период]])-1))),\"-\")","v":{"v":0,"d":"0.00%"}},{"$f":"IFERROR(IF(ОперативниРазходи[[#This Row],[Бюджет]]=ОперативниРазходи[[#This Row],[Текущ период]],0,IF(ОперативниРазходи[[#This Row],[Текущ период]]>ОперативниРазходи[[#This Row],[Бюджет]],ABS((ОперативниРазходи[[#This Row],[Текущ период]]/ОперативниРазходи[[#This Row],[Бюджет]])-1),IF(AND(ОперативниРазходи[[#This Row],[Текущ период]]<ОперативниРазходи[[#This Row],[Бюджет]],ОперативниРазходи[[#This Row],[Бюджет]]<0),-((ОперативниРазходи[[#This Row],[Текущ период]]/ОперативниРазходи[[#This Row],[Бюджет]])-1),(ОперативниРазходи[[#This Row],[Текущ период]]/ОперативниРазходи[[#This Row],[Бюджет]])-1))),\"-\")","v":{"v":0,"d":"0.00%"}}]
[null,"Общи и административни","Храна и развлечения",{"$nulls":3},{"$f":"IFERROR(IF(Приход_от_продажби=0,\"-\",ОперативниРазходи[[#This Row],[Текущ период]]/Приход_от_продажби),\"-\")","v":"-"},{"$f":"IFERROR(IF(ОперативниРазходи[[#This Row],[Предишен период]]=ОперативниРазходи[[#This Row],[Текущ период]],0,IF(ОперативниРазходи[[#This Row],[Текущ период]]>ОперативниРазходи[[#This Row],[Предишен период]],ABS((ОперативниРазходи[[#This Row],[Текущ период]]/ОперативниРазходи[[#This Row],[Предишен период]])-1),IF(AND(ОперативниРазходи[[#This Row],[Текущ период]]<ОперативниРазходи[[#This Row],[Предишен период]],ОперативниРазходи[[#This Row],[Предишен период]]<0),-((ОперативниРазходи[[#This Row],[Текущ период]]/ОперативниРазходи[[#This Row],[Предишен период]])-1),(ОперативниРазходи[[#This Row],[Текущ период]]/ОперативниРазходи[[#This Row],[Предишен период]])-1))),\"-\")","v":{"v":0,"d":"0.00%"}},{"$f":"IFERROR(IF(ОперативниРазходи[[#This Row],[Бюджет]]=ОперативниРазходи[[#This Row],[Текущ период]],0,IF(ОперативниРазходи[[#This Row],[Текущ период]]>ОперативниРазходи[[#This Row],[Бюджет]],ABS((ОперативниРазходи[[#This Row],[Текущ период]]/ОперативниРазходи[[#This Row],[Бюджет]])-1),IF(AND(ОперативниРазходи[[#This Row],[Текущ период]]<ОперативниРазходи[[#This Row],[Бюджет]],ОперативниРазходи[[#This Row],[Бюджет]]<0),-((ОперативниРазходи[[#This Row],[Текущ период]]/ОперативниРазходи[[#This Row],[Бюджет]])-1),(ОперативниРазходи[[#This Row],[Текущ период]]/ОперативниРазходи[[#This Row],[Бюджет]])-1))),\"-\")","v":{"v":0,"d":"0.00%"}}]
[null,"Общи и административни","Наем",{"$nulls":3},{"$f":"IFERROR(IF(Приход_от_продажби=0,\"-\",ОперативниРазходи[[#This Row],[Текущ период]]/Приход_от_продажби),\"-\")","v":"-"},{"$f":"IFERROR(IF(ОперативниРазходи[[#This Row],[Предишен период]]=ОперативниРазходи[[#This Row],[Текущ период]],0,IF(ОперативниРазходи[[#This Row],[Текущ период]]>ОперативниРазходи[[#This Row],[Предишен период]],ABS((ОперативниРазходи[[#This Row],[Текущ период]]/ОперативниРазходи[[#This Row],[Предишен период]])-1),IF(AND(ОперативниРазходи[[#This Row],[Текущ период]]<ОперативниРазходи[[#This Row],[Предишен период]],ОперативниРазходи[[#This Row],[Предишен период]]<0),-((ОперативниРазходи[[#This Row],[Текущ период]]/ОперативниРазходи[[#This Row],[Предишен период]])-1),(ОперативниРазходи[[#This Row],[Текущ период]]/ОперативниРазходи[[#This Row],[Предишен период]])-1))),\"-\")","v":{"v":0,"d":"0.00%"}},{"$f":"IFERROR(IF(ОперативниРазходи[[#This Row],[Бюджет]]=ОперативниРазходи[[#This Row],[Текущ период]],0,IF(ОперативниРазходи[[#This Row],[Текущ период]]>ОперативниРазходи[[#This Row],[Бюджет]],ABS((ОперативниРазходи[[#This Row],[Текущ период]]/ОперативниРазходи[[#This Row],[Бюджет]])-1),IF(AND(ОперативниРазходи[[#This Row],[Текущ период]]<ОперативниРазходи[[#This Row],[Бюджет]],ОперативниРазходи[[#This Row],[Бюджет]]<0),-((ОперативниРазходи[[#This Row],[Текущ период]]/ОперативниРазходи[[#This Row],[Бюджет]])-1),(ОперативниРазходи[[#This Row],[Текущ период]]/ОперативниРазходи[[#This Row],[Бюджет]])-1))),\"-\")","v":{"v":0,"d":"0.00%"}}]
[null,"Общи и административни","Телефон",{"$nulls":3},{"$f":"IFERROR(IF(Приход_от_продажби=0,\"-\",ОперативниРазходи[[#This Row],[Текущ период]]/Приход_от_продажби),\"-\")","v":"-"},{"$f":"IFERROR(IF(ОперативниРазходи[[#This Row],[Предишен период]]=ОперативниРазходи[[#This Row],[Текущ период]],0,IF(ОперативниРазходи[[#This Row],[Текущ период]]>ОперативниРазходи[[#This Row],[Предишен период]],ABS((ОперативниРазходи[[#This Row],[Текущ период]]/ОперативниРазходи[[#This Row],[Предишен период]])-1),IF(AND(ОперативниРазходи[[#This Row],[Текущ период]]<ОперативниРазходи[[#This Row],[Предишен период]],ОперативниРазходи[[#This Row],[Предишен период]]<0),-((ОперативниРазходи[[#This Row],[Текущ период]]/ОперативниРазходи[[#This Row],[Предишен период]])-1),(ОперативниРазходи[[#This Row],[Текущ период]]/ОперативниРазходи[[#This Row],[Предишен период]])-1))),\"-\")","v":{"v":0,"d":"0.00%"}},{"$f":"IFERROR(IF(ОперативниРазходи[[#This Row],[Бюджет]]=ОперативниРазходи[[#This Row],[Текущ период]],0,IF(ОперативниРазходи[[#This Row],[Текущ период]]>ОперативниРазходи[[#This Row],[Бюджет]],ABS((ОперативниРазходи[[#This Row],[Текущ период]]/ОперативниРазходи[[#This Row],[Бюджет]])-1),IF(AND(ОперативниРазходи[[#This Row],[Текущ период]]<ОперативниРазходи[[#This Row],[Бюджет]],ОперативниРазходи[[#This Row],[Бюджет]]<0),-((ОперативниРазходи[[#This Row],[Текущ период]]/ОперативниРазходи[[#This Row],[Бюджет]])-1),(ОперативниРазходи[[#This Row],[Текущ период]]/ОперативниРазходи[[#This Row],[Бюджет]])-1))),\"-\")","v":{"v":0,"d":"0.00%"}}]
[null,"Общи и административни","Комунални услуги",{"$nulls":3},{"$f":"IFERROR(IF(Приход_от_продажби=0,\"-\",ОперативниРазходи[[#This Row],[Текущ период]]/Приход_от_продажби),\"-\")","v":"-"},{"$f":"IFERROR(IF(ОперативниРазходи[[#This Row],[Предишен период]]=ОперативниРазходи[[#This Row],[Текущ период]],0,IF(ОперативниРазходи[[#This Row],[Текущ период]]>ОперативниРазходи[[#This Row],[Предишен период]],ABS((ОперативниРазходи[[#This Row],[Текущ период]]/ОперативниРазходи[[#This Row],[Предишен период]])-1),IF(AND(ОперативниРазходи[[#This Row],[Текущ период]]<ОперативниРазходи[[#This Row],[Предишен период]],ОперативниРазходи[[#This Row],[Предишен период]]<0),-((ОперативниРазходи[[#This Row],[Текущ период]]/ОперативниРазходи[[#This Row],[Предишен период]])-1),(ОперативниРазходи[[#This Row],[Текущ период]]/ОперативниРазходи[[#This Row],[Предишен период]])-1))),\"-\")","v":{"v":0,"d":"0.00%"}},{"$f":"IFERROR(IF(ОперативниРазходи[[#This Row],[Бюджет]]=ОперативниРазходи[[#This Row],[Текущ период]],0,IF(ОперативниРазходи[[#This Row],[Текущ период]]>ОперативниРазходи[[#This Row],[Бюджет]],ABS((ОперативниРазходи[[#This Row],[Текущ период]]/ОперативниРазходи[[#This Row],[Бюджет]])-1),IF(AND(ОперативниРазходи[[#This Row],[Текущ период]]<ОперативниРазходи[[#This Row],[Бюджет]],ОперативниРазходи[[#This Row],[Бюджет]]<0),-((ОперативниРазходи[[#This Row],[Текущ период]]/ОперативниРазходи[[#This Row],[Бюджет]])-1),(ОперативниРазходи[[#This Row],[Текущ период]]/ОперативниРазходи[[#This Row],[Бюджет]])-1))),\"-\")","v":{"v":0,"d":"0.00%"}}]
[null,"Общи и административни","Амортизация",{"$nulls":3},{"$f":"IFERROR(IF(Приход_от_продажби=0,\"-\",ОперативниРазходи[[#This Row],[Текущ период]]/Приход_от_продажби),\"-\")","v":"-"},{"$f":"IFERROR(IF(ОперативниРазходи[[#This Row],[Предишен период]]=ОперативниРазходи[[#This Row],[Текущ период]],0,IF(ОперативниРазходи[[#This Row],[Текущ период]]>ОперативниРазходи[[#This Row],[Предишен период]],ABS((ОперативниРазходи[[#This Row],[Текущ период]]/ОперативниРазходи[[#This Row],[Предишен период]])-1),IF(AND(ОперативниРазходи[[#This Row],[Текущ период]]<ОперативниРазходи[[#This Row],[Предишен период]],ОперативниРазходи[[#This Row],[Предишен период]]<0),-((ОперативниРазходи[[#This Row],[Текущ период]]/ОперативниРазходи[[#This Row],[Предишен период]])-1),(ОперативниРазходи[[#This Row],[Текущ период]]/ОперативниРазходи[[#This Row],[Предишен период]])-1))),\"-\")","v":{"v":0,"d":"0.00%"}},{"$f":"IFERROR(IF(ОперативниРазходи[[#This Row],[Бюджет]]=ОперативниРазходи[[#This Row],[Текущ период]],0,IF(ОперативниРазходи[[#This Row],[Текущ период]]>ОперативниРазходи[[#This Row],[Бюджет]],ABS((ОперативниРазходи[[#This Row],[Текущ период]]/ОперативниРазходи[[#This Row],[Бюджет]])-1),IF(AND(ОперативниРазходи[[#This Row],[Текущ период]]<ОперативниРазходи[[#This Row],[Бюджет]],ОперативниРазходи[[#This Row],[Бюджет]]<0),-((ОперативниРазходи[[#This Row],[Текущ период]]/ОперативниРазходи[[#This Row],[Бюджет]])-1),(ОперативниРазходи[[#This Row],[Текущ период]]/ОперативниРазходи[[#This Row],[Бюджет]])-1))),\"-\")","v":{"v":0,"d":"0.00%"}}]
[null,"Общи и административни","Застраховка",{"$nulls":3},{"$f":"IFERROR(IF(Приход_от_продажби=0,\"-\",ОперативниРазходи[[#This Row],[Текущ период]]/Приход_от_продажби),\"-\")","v":"-"},{"$f":"IFERROR(IF(ОперативниРазходи[[#This Row],[Предишен период]]=ОперативниРазходи[[#This Row],[Текущ период]],0,IF(ОперативниРазходи[[#This Row],[Текущ период]]>ОперативниРазходи[[#This Row],[Предишен период]],ABS((ОперативниРазходи[[#This Row],[Текущ период]]/ОперативниРазходи[[#This Row],[Предишен период]])-1),IF(AND(ОперативниРазходи[[#This Row],[Текущ период]]<ОперативниРазходи[[#This Row],[Предишен период]],ОперативниРазходи[[#This Row],[Предишен период]]<0),-((ОперативниРазходи[[#This Row],[Текущ период]]/ОперативниРазходи[[#This Row],[Предишен период]])-1),(ОперативниРазходи[[#This Row],[Текущ период]]/ОперативниРазходи[[#This Row],[Предишен период]])-1))),\"-\")","v":{"v":0,"d":"0.00%"}},{"$f":"IFERROR(IF(ОперативниРазходи[[#This Row],[Бюджет]]=ОперативниРазходи[[#This Row],[Текущ период]],0,IF(ОперативниРазходи[[#This Row],[Текущ период]]>ОперативниРазходи[[#This Row],[Бюджет]],ABS((ОперативниРазходи[[#This Row],[Текущ период]]/ОперативниРазходи[[#This Row],[Бюджет]])-1),IF(AND(ОперативниРазходи[[#This Row],[Текущ период]]<ОперативниРазходи[[#This Row],[Бюджет]],ОперативниРазходи[[#This Row],[Бюджет]]<0),-((ОперативниРазходи[[#This Row],[Текущ период]]/ОперативниРазходи[[#This Row],[Бюджет]])-1),(ОперативниРазходи[[#This Row],[Текущ период]]/ОперативниРазходи[[#This Row],[Бюджет]])-1))),\"-\")","v":{"v":0,"d":"0.00%"}}]
[null,"Общи и административни","Ремонти и поддръжка",{"$nulls":3},{"$f":"IFERROR(IF(Приход_от_продажби=0,\"-\",ОперативниРазходи[[#This Row],[Текущ период]]/Приход_от_продажби),\"-\")","v":"-"},{"$f":"IFERROR(IF(ОперативниРазходи[[#This Row],[Предишен период]]=ОперативниРазходи[[#This Row],[Текущ период]],0,IF(ОперативниРазходи[[#This Row],[Текущ период]]>ОперативниРазходи[[#This Row],[Предишен период]],ABS((ОперативниРазходи[[#This Row],[Текущ период]]/ОперативниРазходи[[#This Row],[Предишен период]])-1),IF(AND(ОперативниРазходи[[#This Row],[Текущ период]]<ОперативниРазходи[[#This Row],[Предишен период]],ОперативниРазходи[[#This Row],[Предишен период]]<0),-((ОперативниРазходи[[#This Row],[Текущ период]]/ОперативниРазходи[[#This Row],[Предишен период]])-1),(ОперативниРазходи[[#This Row],[Текущ период]]/ОперативниРазходи[[#This Row],[Предишен период]])-1))),\"-\")","v":{"v":0,"d":"0.00%"}},{"$f":"IFERROR(IF(ОперативниРазходи[[#This Row],[Бюджет]]=ОперативниРазходи[[#This Row],[Текущ период]],0,IF(ОперативниРазходи[[#This Row],[Текущ период]]>ОперативниРазходи[[#This Row],[Бюджет]],ABS((ОперативниРазходи[[#This Row],[Текущ период]]/ОперативниРазходи[[#This Row],[Бюджет]])-1),IF(AND(ОперативниРазходи[[#This Row],[Текущ период]]<ОперативниРазходи[[#This Row],[Бюджет]],ОперативниРазходи[[#This Row],[Бюджет]]<0),-((ОперативниРазходи[[#This Row],[Текущ период]]/ОперативниРазходи[[#This Row],[Бюджет]])-1),(ОперативниРазходи[[#This Row],[Текущ период]]/ОперативниРазходи[[#This Row],[Бюджет]])-1))),\"-\")","v":{"v":0,"d":"0.00%"}}]
[null,"Общи и административни","Други разходи (посочете)",{"$nulls":3},{"$f":"IFERROR(IF(Приход_от_продажби=0,\"-\",ОперативниРазходи[[#This Row],[Текущ период]]/Приход_от_продажби),\"-\")","v":"-"},{"$f":"IFERROR(IF(ОперативниРазходи[[#This Row],[Предишен период]]=ОперативниРазходи[[#This Row],[Текущ период]],0,IF(ОперативниРазходи[[#This Row],[Текущ период]]>ОперативниРазходи[[#This Row],[Предишен период]],ABS((ОперативниРазходи[[#This Row],[Текущ период]]/ОперативниРазходи[[#This Row],[Предишен период]])-1),IF(AND(ОперативниРазходи[[#This Row],[Текущ период]]<ОперативниРазходи[[#This Row],[Предишен период]],ОперативниРазходи[[#This Row],[Предишен период]]<0),-((ОперативниРазходи[[#This Row],[Текущ период]]/ОперативниРазходи[[#This Row],[Предишен период]])-1),(ОперативниРазходи[[#This Row],[Текущ период]]/ОперативниРазходи[[#This Row],[Предишен период]])-1))),\"-\")","v":{"v":0,"d":"0.00%"}},{"$f":"IFERROR(IF(ОперативниРазходи[[#This Row],[Бюджет]]=ОперативниРазходи[[#This Row],[Текущ период]],0,IF(ОперативниРазходи[[#This Row],[Текущ период]]>ОперативниРазходи[[#This Row],[Бюджет]],ABS((ОперативниРазходи[[#This Row],[Текущ период]]/ОперативниРазходи[[#This Row],[Бюджет]])-1),IF(AND(ОперативниРазходи[[#This Row],[Текущ период]]<ОперативниРазходи[[#This Row],[Бюджет]],ОперативниРазходи[[#This Row],[Бюджет]]<0),-((ОперативниРазходи[[#This Row],[Текущ период]]/ОперативниРазходи[[#This Row],[Бюджет]])-1),(ОперативниРазходи[[#This Row],[Текущ период]]/ОперативниРазходи[[#This Row],[Бюджет]])-1))),\"-\")","v":{"v":0,"d":"0.00%"}}]
[null,"Общи и административни","Други разходи (посочете)",{"$nulls":3},{"$f":"IFERROR(IF(Приход_от_продажби=0,\"-\",ОперативниРазходи[[#This Row],[Текущ период]]/Приход_от_продажби),\"-\")","v":"-"},{"$f":"IFERROR(IF(ОперативниРазходи[[#This Row],[Предишен период]]=ОперативниРазходи[[#This Row],[Текущ период]],0,IF(ОперативниРазходи[[#This Row],[Текущ период]]>ОперативниРазходи[[#This Row],[Предишен период]],ABS((ОперативниРазходи[[#This Row],[Текущ период]]/ОперативниРазходи[[#This Row],[Предишен период]])-1),IF(AND(ОперативниРазходи[[#This Row],[Текущ период]]<ОперативниРазходи[[#This Row],[Предишен период]],ОперативниРазходи[[#This Row],[Предишен период]]<0),-((ОперативниРазходи[[#This Row],[Текущ период]]/ОперативниРазходи[[#This Row],[Предишен период]])-1),(ОперативниРазходи[[#This Row],[Текущ период]]/ОперативниРазходи[[#This Row],[Предишен период]])-1))),\"-\")","v":{"v":0,"d":"0.00%"}},{"$f":"IFERROR(IF(ОперативниРазходи[[#This Row],[Бюджет]]=ОперативниРазходи[[#This Row],[Текущ период]],0,IF(ОперативниРазходи[[#This Row],[Текущ период]]>ОперативниРазходи[[#This Row],[Бюджет]],ABS((ОперативниРазходи[[#This Row],[Текущ период]]/ОперативниРазходи[[#This Row],[Бюджет]])-1),IF(AND(ОперативниРазходи[[#This Row],[Текущ период]]<ОперативниРазходи[[#This Row],[Бюджет]],ОперативниРазходи[[#This Row],[Бюджет]]<0),-((ОперативниРазходи[[#This Row],[Текущ период]]/ОперативниРазходи[[#This Row],[Бюджет]])-1),(ОперативниРазходи[[#This Row],[Текущ период]]/ОперативниРазходи[[#This Row],[Бюджет]])-1))),\"-\")","v":{"v":0,"d":"0.00%"}}]
[null,"Общо оперативни разходи",null,{"$f":"SUBTOTAL(109,ОперативниРазходи[Предишен период])","v":0},{"$f":"SUBTOTAL(109,ОперативниРазходи[Бюджет])","v":0},{"$f":"SUBTOTAL(109,ОперативниРазходи[Текущ период])","v":0},{"$f":"SUBTOTAL(109,ОперативниРазходи[Текущия период като % от продажбите])","v":{"v":0,"d":"0.00%"}},{"$f":"SUBTOTAL(109,ОперативниРазходи[% промяна спрямо предишния период])","v":{"v":0,"d":"0.00%"}},{"$f":"SUBTOTAL(109,ОперативниРазходи[% промяна спрямо бюджета])","v":{"v":0,"d":"0.00%"}}]

{"sheet":"Данъци","index":4,"n_rows":10,"n_cols":9,"rows_kept":10,"merged":[[0,7,2,8]]}
[null,{"$f":"Заглавие_На_Работна_Книга","v":"Отчет за Печалбите и Загубите"}]
[null,{"$f":"Име_на_фирма","v":"Име на фирмата"},"Изразено в хиляди"]
[null,"Данъци",{"$f":"IFERROR(Данъци[[#Totals],[Текущ период]],\"-\")","v":0}]
[null,"Тип","Описание","Предишен период","Бюджет","Текущ период","Текущия период като % от продажбите","% промяна спрямо предишния период","% промяна спрямо бюджета"]
[null,"Данъци","Подоходни данъци",{"$nulls":3},{"$f":"IFERROR(IF(Приход_от_продажби=0,\"-\",Данъци[[#This Row],[Текущ период]]/Приход_от_продажби),\"-\")","v":"-"},{"$f":"IFERROR(IF(Данъци[[#This Row],[Предишен период]]=Данъци[[#This Row],[Текущ период]],0,IF(Данъци[[#This Row],[Текущ период]]>Данъци[[#This Row],[Предишен период]],ABS((Данъци[[#This Row],[Текущ период]]/Данъци[[#This Row],[Предишен период]])-1),IF(AND(Данъци[[#This Row],[Текущ период]]<Данъци[[#This Row],[Предишен период]],Данъци[[#This Row],[Предишен период]]<0),-((Данъци[[#This Row],[Текущ период]]/Данъци[[#This Row],[Предишен период]])-1),(Данъци[[#This Row],[Текущ период]]/Данъци[[#This Row],[Предишен период]])-1))),\"-\")","v":{"v":0,"d":"0.00%"}},{"$f":"IFERROR(IF(Данъци[[#This Row],[Бюджет]]=Данъци[[#This Row],[Текущ период]],0,IF(Данъци[[#This Row],[Текущ период]]>Данъци[[#This Row],[Бюджет]],ABS((Данъци[[#This Row],[Текущ период]]/Данъци[[#This Row],[Бюджет]])-1),IF(AND(Данъци[[#This Row],[Текущ период]]<Данъци[[#This Row],[Бюджет]],Данъци[[#This Row],[Бюджет]]<0),-((Данъци[[#This Row],[Текущ период]]/Данъци[[#This Row],[Бюджет]])-1),(Данъци[[#This Row],[Текущ период]]/Данъци[[#This Row],[Бюджет]])-1))),\"-\")","v":{"v":0,"d":"0.00%"}}]
[null,"Данъци","Данъци, удържани от заплата",{"$nulls":3},{"$f":"IFERROR(IF(Приход_от_продажби=0,\"-\",Данъци[[#This Row],[Текущ период]]/Приход_от_продажби),\"-\")","v":"-"},{"$f":"IFERROR(IF(Данъци[[#This Row],[Предишен период]]=Данъци[[#This Row],[Текущ период]],0,IF(Данъци[[#This Row],[Текущ период]]>Данъци[[#This Row],[Предишен период]],ABS((Данъци[[#This Row],[Текущ период]]/Данъци[[#This Row],[Предишен период]])-1),IF(AND(Данъци[[#This Row],[Текущ период]]<Данъци[[#This Row],[Предишен период]],Данъци[[#This Row],[Предишен период]]<0),-((Данъци[[#This Row],[Текущ период]]/Данъци[[#This Row],[Предишен период]])-1),(Данъци[[#This Row],[Текущ период]]/Данъци[[#This Row],[Предишен период]])-1))),\"-\")","v":{"v":0,"d":"0.00%"}},{"$f":"IFERROR(IF(Данъци[[#This Row],[Бюджет]]=Данъци[[#This Row],[Текущ период]],0,IF(Данъци[[#This Row],[Текущ период]]>Данъци[[#This Row],[Бюджет]],ABS((Данъци[[#This Row],[Текущ период]]/Данъци[[#This Row],[Бюджет]])-1),IF(AND(Данъци[[#This Row],[Текущ период]]<Данъци[[#This Row],[Бюджет]],Данъци[[#This Row],[Бюджет]]<0),-((Данъци[[#This Row],[Текущ период]]/Данъци[[#This Row],[Бюджет]])-1),(Данъци[[#This Row],[Текущ период]]/Данъци[[#This Row],[Бюджет]])-1))),\"-\")","v":{"v":0,"d":"0.00%"}}]
[null,"Данъци","Данъци за недвижими имоти",{"$nulls":3},{"$f":"IFERROR(IF(Приход_от_продажби=0,\"-\",Данъци[[#This Row],[Текущ период]]/Приход_от_продажби),\"-\")","v":"-"},{"$f":"IFERROR(IF(Данъци[[#This Row],[Предишен период]]=Данъци[[#This Row],[Текущ период]],0,IF(Данъци[[#This Row],[Текущ период]]>Данъци[[#This Row],[Предишен период]],ABS((Данъци[[#This Row],[Текущ период]]/Данъци[[#This Row],[Предишен период]])-1),IF(AND(Данъци[[#This Row],[Текущ период]]<Данъци[[#This Row],[Предишен период]],Данъци[[#This Row],[Предишен период]]<0),-((Данъци[[#This Row],[Текущ период]]/Данъци[[#This Row],[Предишен период]])-1),(Данъци[[#This Row],[Текущ период]]/Данъци[[#This Row],[Предишен период]])-1))),\"-\")","v":{"v":0,"d":"0.00%"}},{"$f":"IFERROR(IF(Данъци[[#This Row],[Бюджет]]=Данъци[[#This Row],[Текущ период]],0,IF(Данъци[[#This Row],[Текущ период]]>Данъци[[#This Row],[Бюджет]],ABS((Данъци[[#This Row],[Текущ период]]/Данъци[[#This Row],[Бюджет]])-1),IF(AND(Данъци[[#This Row],[Текущ период]]<Данъци[[#This Row],[Бюджет]],Данъци[[#This Row],[Бюджет]]<0),-((Данъци[[#This Row],[Текущ период]]/Данъци[[#This Row],[Бюджет]])-1),(Данъци[[#This Row],[Текущ период]]/Данъци[[#This Row],[Бюджет]])-1))),\"-\")","v":{"v":0,"d":"0.00%"}}]
[null,"Данъци","Други данъци (посочете)",{"$nulls":3},{"$f":"IFERROR(IF(Приход_от_продажби=0,\"-\",Данъци[[#This Row],[Текущ период]]/Приход_от_продажби),\"-\")","v":"-"},{"$f":"IFERROR(IF(Данъци[[#This Row],[Предишен период]]=Данъци[[#This Row],[Текущ период]],0,IF(Данъци[[#This Row],[Текущ период]]>Данъци[[#This Row],[Предишен период]],ABS((Данъци[[#This Row],[Текущ период]]/Данъци[[#This Row],[Предишен период]])-1),IF(AND(Данъци[[#This Row],[Текущ период]]<Данъци[[#This Row],[Предишен период]],Данъци[[#This Row],[Предишен период]]<0),-((Данъци[[#This Row],[Текущ период]]/Данъци[[#This Row],[Предишен период]])-1),(Данъци[[#This Row],[Текущ период]]/Данъци[[#This Row],[Предишен период]])-1))),\"-\")","v":{"v":0,"d":"0.00%"}},{"$f":"IFERROR(IF(Данъци[[#This Row],[Бюджет]]=Данъци[[#This Row],[Текущ период]],0,IF(Данъци[[#This Row],[Текущ период]]>Данъци[[#This Row],[Бюджет]],ABS((Данъци[[#This Row],[Текущ период]]/Данъци[[#This Row],[Бюджет]])-1),IF(AND(Данъци[[#This Row],[Текущ период]]<Данъци[[#This Row],[Бюджет]],Данъци[[#This Row],[Бюджет]]<0),-((Данъци[[#This Row],[Текущ период]]/Данъци[[#This Row],[Бюджет]])-1),(Данъци[[#This Row],[Текущ период]]/Данъци[[#This Row],[Бюджет]])-1))),\"-\")","v":{"v":0,"d":"0.00%"}}]
[null,"Данъци","Други данъци (посочете)",{"$nulls":3},{"$f":"IFERROR(IF(Приход_от_продажби=0,\"-\",Данъци[[#This Row],[Текущ период]]/Приход_от_продажби),\"-\")","v":"-"},{"$f":"IFERROR(IF(Данъци[[#This Row],[Предишен период]]=Данъци[[#This Row],[Текущ период]],0,IF(Данъци[[#This Row],[Текущ период]]>Данъци[[#This Row],[Предишен период]],ABS((Данъци[[#This Row],[Текущ период]]/Данъци[[#This Row],[Предишен период]])-1),IF(AND(Данъци[[#This Row],[Текущ период]]<Данъци[[#This Row],[Предишен период]],Данъци[[#This Row],[Предишен период]]<0),-((Данъци[[#This Row],[Текущ период]]/Данъци[[#This Row],[Предишен период]])-1),(Данъци[[#This Row],[Текущ период]]/Данъци[[#This Row],[Предишен период]])-1))),\"-\")","v":{"v":0,"d":"0.00%"}},{"$f":"IFERROR(IF(Данъци[[#This Row],[Бюджет]]=Данъци[[#This Row],[Текущ период]],0,IF(Данъци[[#This Row],[Текущ период]]>Данъци[[#This Row],[Бюджет]],ABS((Данъци[[#This Row],[Текущ период]]/Данъци[[#This Row],[Бюджет]])-1),IF(AND(Данъци[[#This Row],[Текущ период]]<Данъци[[#This Row],[Бюджет]],Данъци[[#This Row],[Бюджет]]<0),-((Данъци[[#This Row],[Текущ период]]/Данъци[[#This Row],[Бюджет]])-1),(Данъци[[#This Row],[Текущ период]]/Данъци[[#This Row],[Бюджет]])-1))),\"-\")","v":{"v":0,"d":"0.00%"}}]
[null,"Общо данъци",null,{"$f":"SUBTOTAL(109,Данъци[Предишен период])","v":0},{"$f":"SUBTOTAL(109,Данъци[Бюджет])","v":0},{"$f":"SUBTOTAL(109,Данъци[Текущ период])","v":0},{"$f":"IFERROR(SUBTOTAL(109,Данъци[Текущия период като % от продажбите]),\"-\")","v":{"v":0,"d":"0.00%"}},{"$f":"SUBTOTAL(109,Данъци[% промяна спрямо предишния период])","v":{"v":0,"d":"0.00%"}},{"$f":"SUBTOTAL(109,Данъци[% промяна спрямо бюджета])","v":{"v":0,"d":"0.00%"}}]

{"sheet":"Категории","index":5,"n_rows":8,"n_cols":2,"rows_kept":8}
[null,"Категории"]
[null,"Приходи от продажби"]
[null,"Себестойност на продажбите"]
[null,"Доход"]
[null,"Продажби и маркетинг"]
[null,"Изследвания и разработки"]
[null,"Общи и административни"]
[null,"Данъци"]